bitfinex-derivatives/quotes_BTCF0:USTF0_20250216
["timestamp","ask_amount","ask_price","bid_price","bid_amount"]
[1739681915902,0.2059468,97572.0,97571.0,0.51246459]
[1739681917908,0.2059468,97572.0,97571.0,0.2049489]
[1739681920514,0.001,97572.0,97571.0,0.2362489]
[1739681922916,0.001,97572.0,97571.0,0.58761435]
[1739681924813,0.001,97572.0,97571.0,0.60363295]
[1739681925317,0.001,97572.0,97571.0,0.60363305]
[1739681925908,0.001,97572.0,97571.0,0.58761435]
[1739681945842,0.001,97572.0,97571.0,0.89503601]
[1739681949337,0.001,97572.0,97571.0,0.58761435]
[1739681976044,0.001,97572.0,97571.0,0.60363336]
[1739681977249,0.001,97572.0,97571.0,0.60363334]
[1739681987264,0.001,97572.0,97571.0,0.60363323]
[1739681987765,0.001,97572.0,97571.0,0.60363307]
[1739681995369,0.001,97572.0,97571.0,0.60363346]
[1739681996364,0.001,97572.0,97571.0,0.58761435]
[1739682007579,0.001,97572.0,97571.0,0.2362489]
[1739682014677,0.001,97572.0,97571.0,0.58471704]
[1739682016081,0.00015376,97577.0,97576.0,0.2049383]
[1739682016277,0.00015376,97577.0,97576.0,0.5657383]
[1739682017281,0.00115376,97577.0,97576.0,0.5657383]
[1739682017487,0.00115376,97577.0,97576.0,0.5667383]
[1739682018590,0.00115376,97577.0,97576.0,0.58275571]
[1739682019491,0.00115376,97577.0,97576.0,0.88996965]
[1739682019688,0.00115376,97577.0,97576.0,0.88996991]
[1739682020388,0.00115376,97577.0,97576.0,0.52916991]
[1739682020888,0.00115376,97577.0,97576.0,0.88996991]
[1739682024192,0.00115376,97577.0,97576.0,0.93225129]
[1739682025279,0.00115376,97577.0,97576.0,0.93225127]
[1739682026590,0.00115376,97577.0,97576.0,0.57145127]
[1739682026795,0.00115376,97577.0,97576.0,0.93225127]
[1739682027195,0.00115376,97577.0,97576.0,0.93225129]
[1739682027689,0.00115376,97577.0,97576.0,0.93225137]
[1739682033895,0.00115376,97577.0,97576.0,0.91623362]
[1739682037093,0.00115376,97577.0,97576.0,0.5667383]
[1739682044997,0.00115376,97577.0,97576.0,0.91301392]
[1739682047393,0.00115376,97577.0,97576.0,0.55221392]
[1739682065923,0.00115376,97577.0,97576.0,0.2059383]
[1739682072030,0.00115376,97577.0,97576.0,0.001]
[1739682072230,0.20608996,97577.0,97576.0,0.001]
[1739682073441,0.23918996,97577.0,97576.0,0.001]
[1739682079443,0.59998996,97577.0,97576.0,0.001]
[1739682081837,0.23918996,97577.0,97576.0,0.001]
[1739682082039,0.59998996,97577.0,97576.0,0.001]
[1739682084637,0.23918996,97577.0,97576.0,0.001]
[1739682084842,0.59998996,97577.0,97576.0,0.001]
[1739682099245,0.23918996,97577.0,97576.0,0.001]
[1739682099550,0.59998996,97577.0,97576.0,0.001]
[1739682100845,0.59998996,97577.0,97576.0,0.1853464]
[1739682105153,0.59998996,97577.0,97576.0,0.001]
[1739682107647,0.56688996,97577.0,97576.0,0.001]
[1739682117366,0.56688996,97577.0,97576.0,0.18545081]
[1739682121267,0.56688996,97577.0,97576.0,0.001]
[1739682127374,0.20608996,97577.0,97576.0,0.001]
[1739682128075,0.20608996,97577.0,97576.0,0.1854358]
[1739682135174,0.20608996,97577.0,97576.0,0.001]
[1739682145088,0.20608996,97577.0,97576.0,0.18539645]
[1739682149696,0.20608996,97577.0,97576.0,0.001]
[1739682167606,0.23728996,97577.0,97576.0,0.001]
[1739682169117,0.23728996,97577.0,97576.0,0.18537035]
[1739682175014,0.20608996,97577.0,97576.0,0.18537035]
[1739682189426,0.20608996,97577.0,97576.0,0.001]
[1739682201740,0.56688996,97577.0,97576.0,0.001]
[1739682206547,0.20608996,97577.0,97576.0,0.001]
[1739682206738,0.56688996,97577.0,97576.0,0.001]
[1739682239974,0.6167281,97577.0,97576.0,0.001]
[1739682250291,0.72061703,97577.0,97576.0,0.001]
[1739682253993,0.56688996,97577.0,97576.0,0.001]
[1739682262096,0.6167261,97577.0,97576.0,0.001]
[1739682266909,0.56688996,97577.0,97576.0,0.001]
[1739682274008,0.72064794,97577.0,97576.0,0.001]
[1739682278415,0.61672742,97577.0,97576.0,0.001]
[1739682290212,0.2049551,97568.0,97567.0,0.18437035]
[1739682290412,0.5657551,97568.0,97567.0,0.18437035]
[1739682291813,0.5667551,97568.0,97567.0,0.18437035]
[1739682292420,0.5677551,97568.0,97567.0,0.18437035]
[1739682297110,0.2049614,97565.0,97564.0,0.0302]
[1739682298921,0.2059614,97565.0,97564.0,0.0302]
[1739682303725,0.5667614,97565.0,97564.0,0.0302]
[1739682306032,0.5667614,97565.0,97564.0,0.0615]
[1739682308248,0.5667614,97565.0,97564.0,0.0302]
[1739682314256,0.2049719,97560.0,97559.0,0.0301]
[1739682315655,0.2049719,97560.0,97559.0,0.0311]
[1739682317357,0.2049719,97560.0,97559.0,0.0629]
[1739682319048,0.21523004,97560.0,97559.0,0.0629]
[1739682327658,0.21523004,97560.0,97552.0,0.18437035]
[1739682327659,0.2049866,97553.0,97552.0,0.18437035]
[1739682327863,0.5657866,97553.0,97552.0,0.18437035]
[1739682329459,0.5657866,97553.0,97552.0,0.18637035]
[1739682329659,0.5657866,97553.0,97552.0,0.18937035]
[1739682331262,0.2049866,97553.0,97552.0,0.18937035]
[1739682331466,0.5657866,97553.0,97552.0,0.18937035]
[1739682332767,0.5657866,97553.0,97552.0,0.005]
[1739682360581,0.61563868,97553.0,97552.0,0.005]
[1739682366182,0.25483868,97553.0,97552.0,0.005]
[1739682366375,0.97643868,97553.0,97552.0,0.005]
[1739682368083,1.00963868,97553.0,97552.0,0.005]
[1739682373994,1.19407544,97553.0,97552.0,0.005]
[1739682377600,1.00963868,97553.0,97552.0,0.005]
[1739682380408,1.00963868,97553.0,97552.0,0.003]
[1739682380599,1.01063868,97553.0,97552.0,0.003]
[1739682381507,0.2050055,97544.0,97543.0,0.0974]
[1739682381708,0.5658055,97544.0,97543.0,0.0974]
[1739682382604,0.5658055,97544.0,97543.0,0.1004]
[1739682382796,0.5658055,97544.0,97543.0,0.1034]
[1739682387509,0.71960016,97544.0,97543.0,0.1034]
[1739682387712,0.81624016,97544.0,97543.0,0.1034]
[1739682398221,0.6624455,97544.0,97543.0,0.1034]
[1739682398425,0.5658055,97544.0,97543.0,0.1034]
[1739682407629,0.61565832,97544.0,97543.0,0.1034]
[1739682420144,0.5658055,97544.0,97543.0,0.1034]
[1739682427840,0.61565906,97544.0,97543.0,0.1034]
[1739682441747,0.61565906,97544.0,97543.0,0.1004]
[1739682441946,0.61665906,97544.0,97543.0,0.1004]
[1739682442647,0.61665906,97544.0,97543.0,0.0974]
[1739682442849,0.61765906,97544.0,97543.0,0.0974]
[1739682458953,0.72162408,97544.0,97543.0,0.0974]
[1739682466461,0.5678055,97544.0,97543.0,0.0974]
[1739682470068,0.5678055,97544.0,97543.0,0.0658]
[1739682470775,0.61765864,97544.0,97543.0,0.0658]
[1739682477076,0.61765864,97544.0,97543.0,0.0325]
[1739682477268,0.205016,97539.0,97538.0,0.0316]
[1739682478568,0.206016,97539.0,97538.0,0.0316]
[1739682479478,0.21619772,97539.0,97538.0,0.0316]
[1739682480478,0.2050203,97537.0,97536.0,0.0624]
[1739682481481,0.5658203,97537.0,97536.0,0.0624]
[1739682481879,0.5658203,97537.0,97536.0,0.0634]
[1739682484682,0.2050203,97537.0,97536.0,0.0634]
[1739682484881,0.5658203,97537.0,97536.0,0.0634]
[1739682485679,0.2050203,97537.0,97536.0,0.0634]
[1739682485880,0.5658203,97537.0,97536.0,0.0634]
[1739682487583,0.2050203,97537.0,97536.0,0.0634]
[1739682487986,0.5658203,97537.0,97536.0,0.0634]
[1739682494701,0.2050203,97537.0,97536.0,0.0634]
[1739682495105,0.5658203,97537.0,97536.0,0.0634]
[1739682496906,0.2050203,97537.0,97536.0,0.0634]
[1739682497107,0.5658203,97537.0,97536.0,0.0634]
[1739682499401,0.2050203,97537.0,97536.0,0.0634]
[1739682500113,0.5658203,97537.0,97536.0,0.0634]
[1739682501812,0.2050203,97537.0,97536.0,0.0634]
[1739682502002,0.5658203,97537.0,97536.0,0.0634]
[1739682503910,0.2050203,97537.0,97536.0,0.0634]
[1739682504109,0.5658203,97537.0,97536.0,0.0634]
[1739682519717,0.5658203,97537.0,97536.0,0.0946]
[1739682529427,0.2050203,97537.0,97536.0,0.0946]
[1739682529624,0.5658203,97537.0,97536.0,0.0946]
[1739682533733,0.5658203,97537.0,97536.0,0.27897035]
[1739682535630,0.2050203,97537.0,97536.0,0.27897035]
[1739682535936,0.5658203,97537.0,97536.0,0.27897035]
[1739682540543,0.5658203,97537.0,97536.0,0.0946]
[1739682560946,0.5658203,97537.0,97536.0,0.27897035]
[1739682577066,0.5658203,97537.0,97536.0,0.0946]
[1739682580578,0.5658203,97537.0,97536.0,0.27897035]
[1739682584574,0.5658203,97537.0,97536.0,0.0946]
[1739682602198,0.5658203,97537.0,97536.0,0.001]
[1739682606301,0.61567871,97537.0,97536.0,0.001]
[1739682607485,0.61667871,97537.0,97536.0,0.001]
[1739682607693,0.2050329,97531.0,97530.0,0.0946]
[1739682609805,0.2060329,97531.0,97530.0,0.0946]
[1739682610097,0.2070329,97531.0,97530.0,0.0946]
[1739682635225,0.2070329,97531.0,97530.0,0.299635]
[1739682635626,0.2070329,97531.0,97530.0,0.48424802]
[1739682656530,0.2070329,97531.0,97530.0,0.299635]
[1739682664434,0.2080329,97531.0,97530.0,0.48424348]
[1739682668739,0.2080329,97531.0,97530.0,0.299635]
[1739682671845,0.2070329,97531.0,97530.0,0.299635]
[1739682672038,0.2080329,97531.0,97530.0,0.299635]
[1739682673542,0.2060329,97531.0,97530.0,0.299635]
[1739682673744,0.2080329,97531.0,97530.0,0.299635]
[1739682674539,0.2070329,97531.0,97530.0,0.299635]
[1739682674756,0.2080329,97531.0,97530.0,0.299635]
[1739682681350,0.2080329,97531.0,97530.0,0.48423936]
[1739682685160,0.2080329,97531.0,97530.0,0.299635]
[1739682692160,0.18443676,97543.0,97542.0,0.2050097]
[1739682692363,0.41906626,97554.0,97552.0,0.2049887]
[1739682692364,0.21460087,97554.0,97552.0,0.2049887]
[1739682692556,1e-08,97553.0,97552.0,0.2049887]
[1739682694164,0.00300001,97553.0,97552.0,0.2059887]
[1739682695060,0.00700001,97553.0,97552.0,0.2069887]
[1739682695861,0.0315,97572.0,97559.0,0.204974]
[1739682696062,0.01029594,97570.0,97559.0,0.565774]
[1739682697066,0.00015376,97569.0,97559.0,0.566774]
[1739682697372,0.00015376,97569.0,97568.0,0.2049551]
[1739682698960,0.00015376,97569.0,97568.0,0.2059551]
[1739682699670,0.20510676,97569.0,97568.0,0.2069551]
[1739682703867,0.20510676,97569.0,97568.0,0.002]
[1739682705762,0.56590676,97569.0,97568.0,0.002]
[1739682708565,0.2049929,97550.0,97543.0,0.00015375]
[1739682708769,0.5657929,97550.0,97543.0,0.00015375]
[1739682709565,0.5657929,97550.0,97543.0,0.20516105]
[1739682709764,0.5657929,97550.0,97549.0,0.18464799]
[1739682710167,0.5657929,97550.0,97549.0,0.001]
[1739682710567,0.5667929,97550.0,97549.0,0.001]
[1739682722485,0.3618,97550.0,97549.0,0.205995]
[1739682722685,0.001,97550.0,97549.0,0.205995]
[1739682732504,0.2059929,97550.0,97549.0,0.001]
[1739682766122,0.2059929,97550.0,97549.0,0.18464799]
[1739682769521,0.2059929,97550.0,97549.0,0.001]
[1739682770028,0.001,97550.0,97549.0,0.205995]
[1739682776629,0.2059929,97550.0,97549.0,0.001]
[1739682781931,0.9275929,97550.0,97549.0,0.001]
[1739682782526,0.7226,97550.0,97546.0,0.24577332]
[1739682782735,0.2049992,97547.0,97546.0,0.24577332]
[1739682783730,0.0332,97549.0,97546.0,0.001]
[1739682783930,0.2049992,97547.0,97546.0,0.001]
[1739682784536,0.0332,97549.0,97546.0,0.001]
[1739682784735,0.09712,97548.0,97546.0,0.001]
[1739682785136,0.2049992,97547.0,97546.0,0.001]
[1739682786431,0.2059992,97547.0,97546.0,0.001]
[1739682786631,0.2050055,97544.0,97543.0,0.00015375]
[1739682788144,0.2060055,97544.0,97543.0,0.20516135]
[1739682788437,0.5678055,97544.0,97543.0,0.20616135]
[1739682789638,0.2070055,97544.0,97543.0,0.20616135]
[1739682790235,0.002,97544.0,97543.0,0.20616135]
[1739682800346,0.002,97544.0,97543.0,0.39025457]
[1739682802145,0.3608,97557.0,97554.0,0.204982]
[1739682802146,0.204983,97555.0,97554.0,0.204982]
[1739682803539,0.205983,97555.0,97554.0,0.205982]
[1739682803942,0.205983,97555.0,97554.0,0.206982]
[1739682824654,0.205983,97555.0,97554.0,0.39107522]
[1739682826361,0.21608951,97555.0,97554.0,0.39107522]
[1739682833065,0.21608951,97555.0,97554.0,0.206982]
[1739682855879,0.21608951,97555.0,97554.0,0.39153548]
[1739682884208,0.21608951,97555.0,97554.0,0.206982]
[1739682884603,0.21608951,97555.0,97554.0,0.271382]
[1739682887207,0.21608951,97555.0,97554.0,0.45593548]
[1739682895614,0.21608951,97555.0,97554.0,0.271382]
[1739682903819,0.21608951,97555.0,97554.0,0.45591932]
[1739682907520,0.21608951,97555.0,97554.0,0.271382]
[1739682935029,0.21608951,97555.0,97554.0,0.0664]
[1739682946741,0.21608951,97555.0,97554.0,0.2713846]
[1739682948346,0.21608951,97555.0,97554.0,0.51744442]
[1739682958350,0.205983,97555.0,97554.0,0.51744442]
[1739682961647,0.205983,97555.0,97554.0,0.2713846]
[1739682969554,0.205983,97555.0,97554.0,0.51738181]
[1739682972647,0.205983,97555.0,97554.0,0.2713846]
[1739682986260,0.205983,97555.0,97554.0,0.0664]
[1739682999068,0.566783,97555.0,97554.0,0.0664]
[1739683027193,0.566783,97555.0,97554.0,0.002]
[1739683027385,0.598583,97555.0,97554.0,0.002]
[1739683042492,0.566783,97555.0,97554.0,0.002]
[1739683069331,0.71998194,97555.0,97554.0,0.002]
[1739683073139,0.61663045,97555.0,97554.0,0.002]
[1739683076941,0.41164745,97555.0,97544.0,0.18445818]
[1739683077139,0.5658034,97545.0,97544.0,0.18445818]
[1739683078344,0.5658034,97545.0,97544.0,0.18545818]
[1739683078946,0.5668034,97545.0,97544.0,0.18545818]
[1739683079642,0.5668034,97545.0,97544.0,0.18445818]
[1739683079838,0.5668034,97545.0,97544.0,0.18545818]
[1739683080546,0.5668034,97545.0,97544.0,0.001]
[1739683125983,0.7205959,97545.0,97544.0,0.001]
[1739683129279,0.5668034,97545.0,97544.0,0.001]
[1739683134582,0.2060034,97545.0,97544.0,0.001]
[1739683134778,0.5668034,97545.0,97544.0,0.001]
[1739683135584,0.2060034,97545.0,97544.0,0.001]
[1739683135783,0.5668034,97545.0,97544.0,0.001]
[1739683136374,0.2060034,97545.0,97544.0,0.001]
[1739683136581,0.5668034,97545.0,97544.0,0.001]
[1739683140881,0.61665634,97545.0,97544.0,0.001]
[1739683144789,0.5668034,97545.0,97544.0,0.001]
[1739683144992,0.81178492,97545.0,97544.0,0.001]
[1739683145783,0.2050097,97542.0,97541.0,0.0959]
[1739683148082,0.35983313,97542.0,97541.0,0.0959]
[1739683152094,0.25586535,97542.0,97541.0,0.0959]
[1739683155099,0.25686535,97542.0,97541.0,0.0959]
[1739683155797,0.2070097,97542.0,97541.0,0.0959]
[1739683155994,0.2060097,97542.0,97541.0,0.0959]
[1739683156500,0.2070097,97542.0,97541.0,0.0959]
[1739683156795,0.002,97542.0,97534.0,0.18445818]
[1739683156986,0.5658244,97535.0,97534.0,0.18445818]
[1739683158301,0.5668244,97535.0,97534.0,0.18445818]
[1739683159503,0.5678244,97535.0,97534.0,0.18445818]
[1739683159892,0.2050328,97531.0,97530.0,0.0927]
[1739683160599,0.21513392,97531.0,97530.0,0.0927]
[1739683162004,0.21613392,97531.0,97530.0,0.0927]
[1739683163003,0.3608,97535.0,97534.0,0.2050265]
[1739683163203,0.45004094,97541.0,97536.0,0.2050204]
[1739683163402,0.2050176,97539.0,97530.0,0.0927]
[1739683163605,0.2050176,97539.0,97538.0,0.2050181]
[1739683164505,0.24702864,97541.0,97540.0,0.2050139]
[1739683164895,0.24602864,97541.0,97540.0,0.2050139]
[1739683165196,0.24502864,97541.0,97540.0,0.2050139]
[1739683165695,0.24602864,97541.0,97540.0,0.2050139]
[1739683165898,0.24702864,97541.0,97540.0,0.2050139]
[1739683167594,0.24702864,97541.0,97540.0,0.38950877]
[1739683168997,0.45204044,97541.0,97540.0,0.38950877]
[1739683176303,0.24702864,97541.0,97540.0,0.38950877]
[1739683177099,0.24702864,97541.0,97540.0,0.2050139]
[1739683177506,0.24702864,97541.0,97540.0,0.2989139]
[1739683180813,0.24702864,97541.0,97540.0,0.54494544]
[1739683185105,0.24702864,97541.0,97540.0,0.2989139]
[1739683190826,0.24702864,97541.0,97540.0,0.2686139]
[1739683197431,0.24702864,97541.0,97540.0,0.51464544]
[1739683201230,0.24702864,97541.0,97540.0,0.2686139]
[1739683210040,0.24702864,97541.0,97540.0,0.9127264]
[1739683214143,0.24702864,97541.0,97540.0,0.6052713]
[1739683220245,0.002,97541.0,97540.0,0.6052713]
[1739683230954,0.002,97541.0,97540.0,0.9660713]
[1739683234259,0.002,97541.0,97540.0,0.6052713]
[1739683234459,0.002,97541.0,97540.0,0.9660713]
[1739683235254,0.002,97541.0,97540.0,0.6052713]
[1739683235457,0.002,97541.0,97540.0,0.9660713]
[1739683235657,0.002,97541.0,97540.0,0.6052713]
[1739683235858,0.002,97541.0,97540.0,0.9660713]
[1739683237054,0.002,97541.0,97540.0,0.6052713]
[1739683237360,0.002,97541.0,97540.0,0.9660713]
[1739683237561,0.002,97541.0,97540.0,0.6052713]
[1739683237762,0.002,97541.0,97540.0,0.9660713]
[1739683238155,0.2070118,97541.0,97540.0,0.9660713]
[1739683238553,0.2070118,97541.0,97540.0,0.6052713]
[1739683238761,0.2070118,97541.0,97540.0,0.9660713]
[1739683239553,0.2070118,97541.0,97540.0,0.6052713]
[1739683239761,0.2070118,97541.0,97540.0,0.9660713]
[1739683240056,0.2070118,97541.0,97540.0,0.6052713]
[1739683240261,0.2070118,97541.0,97540.0,0.9660713]
[1739683273377,0.002,97541.0,97540.0,0.9660713]
[1739683273581,0.01025373,97547.0,97546.0,0.2050013]
[1739683273772,0.00015376,97548.0,97546.0,0.2050013]
[1739683273973,0.00015376,97548.0,97547.0,0.0638]
[1739683274886,0.04281327,97548.0,97547.0,0.0638]
[1739683276078,0.04281327,97548.0,97547.0,0.0648]
[1739683279086,0.24781037,97548.0,97547.0,0.0648]
[1739683280487,0.24781037,97548.0,97547.0,0.2697992]
[1739683281793,0.23735086,97548.0,97547.0,0.2697992]
[1739683282777,0.03235376,97548.0,97547.0,0.2697992]
[1739683284590,0.00015376,97548.0,97547.0,0.2697992]
[1739683289390,0.00015376,97548.0,97547.0,0.62063719]
[1739683297091,0.00015376,97548.0,97547.0,0.92789427]
[1739683300092,0.00015376,97548.0,97547.0,0.62063719]
[1739683326427,0.00015376,97548.0,97547.0,1.04509561]
[1739683333532,0.00015376,97548.0,97547.0,1.40589561]
[1739683333722,0.00015376,97548.0,97547.0,1.04509561]
[1739683333922,0.00015376,97548.0,97547.0,1.40589561]
[1739683367155,0.00015376,97548.0,97547.0,0.98143719]
[1739683375956,0.00015376,97548.0,97547.0,1.40679968]
[1739683382965,0.00015376,97548.0,97547.0,0.98143719]
[1739683383264,0.00015376,97548.0,97547.0,0.62063719]
[1739683383564,0.00015376,97548.0,97547.0,0.98143719]
[1739683406885,0.00015376,97548.0,97547.0,1.40736361]
[1739683410986,0.00015376,97548.0,97547.0,0.98143719]
[1739683411779,0.00015376,97548.0,97547.0,0.62063719]
[1739683411984,0.00015376,97548.0,97547.0,0.98143719]
[1739683412887,0.00015376,97548.0,97547.0,0.62063719]
[1739683413078,0.00015376,97548.0,97547.0,0.98143719]
[1739683413684,0.00015376,97548.0,97547.0,0.62063719]
[1739683414087,0.00015376,97548.0,97547.0,0.98143719]
[1739683419285,0.00015376,97548.0,97547.0,1.40767357]
[1739683421287,0.00015376,97548.0,97547.0,1.04687357]
[1739683421477,0.00015376,97548.0,97547.0,1.40767357]
[1739683433184,0.00015376,97548.0,97547.0,1.04687357]
[1739683433384,0.00015376,97548.0,97547.0,1.40767357]
[1739683444606,0.00015376,97548.0,97547.0,0.98143719]
[1739683451616,0.00015376,97548.0,97547.0,1.40799269]
[1739683455714,0.00015376,97548.0,97547.0,0.98143719]
[1739683475225,0.00015376,97548.0,97547.0,1.40846238]
[1739683483231,0.00015376,97548.0,97547.0,0.98143719]
[1739683496742,0.00015376,97548.0,97547.0,1.41031635]
[1739683499741,0.00015376,97548.0,97547.0,0.98143719]
[1739683507060,0.00015376,97548.0,97547.0,0.71263799]
[1739683507256,0.20515086,97548.0,97547.0,0.35183799]
[1739683509553,0.20515086,97548.0,97547.0,0.77964879]
[1739683514451,0.20515086,97548.0,97547.0,0.30839555]
[1739683532270,0.20515086,97548.0,97547.0,0.51339475]
[1739683532563,0.20515086,97548.0,97547.0,0.54599475]
[1739683534368,0.20515086,97548.0,97547.0,0.60487532]
[1739683537576,0.00015376,97548.0,97547.0,0.60487532]
[1739683540477,0.00015376,97548.0,97547.0,0.62089841]
[1739683548383,0.00015376,97548.0,97547.0,0.620898]
[1739683548974,0.00015376,97548.0,97547.0,0.6208981]
[1739683550285,0.00015376,97548.0,97547.0,0.62089804]
[1739683553790,0.00015376,97548.0,97547.0,0.65149804]
[1739683555391,0.2049595,97566.0,97561.0,0.2049698]
[1739683555590,0.2049595,97566.0,97561.0,0.22099252]
[1739683556688,0.2049595,97566.0,97561.0,0.2049698]
[1739683557189,0.2049595,97566.0,97561.0,0.2059698]
[1739683557593,0.2049595,97566.0,97561.0,0.22199171]
[1739683558192,0.2049595,97566.0,97561.0,0.22299171]
[1739683558797,0.2049635,97565.0,97561.0,0.22299171]
[1739683559098,0.2049641,97564.0,97561.0,0.22299171]
[1739683559595,0.2049641,97564.0,97561.0,0.2069698]
[1739683564799,0.2049641,97564.0,97561.0,0.22299171]
[1739683565693,0.2049641,97564.0,97561.0,0.2069698]
[1739683566901,0.2049641,97564.0,97561.0,0.22299171]
[1739683567705,0.2049641,97564.0,97561.0,0.2069698]
[1739683570805,0.2049657,97563.0,97561.0,0.2069698]
[1739683571308,0.2049657,97563.0,97562.0,0.24582016]
[1739683573200,0.2049657,97563.0,97562.0,0.24682016]
[1739683573396,0.2049657,97563.0,97562.0,0.45178786]
[1739683573910,0.2049657,97563.0,97562.0,0.46780938]
[1739683574111,0.2049657,97563.0,97562.0,0.46880938]
[1739683574711,0.2049657,97563.0,97562.0,0.45278786]
[1739683575212,0.2049657,97563.0,97562.0,0.2069677]
[1739683576799,0.2049657,97563.0,97562.0,0.22298908]
[1739683577814,0.2049657,97563.0,97562.0,0.2069677]
[1739683596930,0.2049657,97563.0,97562.0,0.22298908]
[1739683597931,0.2049657,97563.0,97562.0,0.2069677]
[1739683603836,0.2049657,97563.0,97562.0,0.51444927]
[1739683605233,0.2049657,97563.0,97562.0,0.53047065]
[1739683607036,0.2049657,97563.0,97562.0,0.89996041]
[1739683609629,0.2049657,97563.0,97562.0,0.89996009]
[1739683612642,0.2049657,97563.0,97562.0,0.89996024]
[1739683613443,0.2049657,97563.0,97562.0,0.53047048]
[1739683615537,0.2049657,97563.0,97562.0,0.53047038]
[1739683621250,0.2049657,97563.0,97562.0,0.22298881]
[1739683632855,0.2049657,97563.0,97562.0,0.2069677]
[1739683633062,0.2049657,97563.0,97562.0,0.22298881]
[1739683634661,0.2049657,97563.0,97562.0,0.53047038]
[1739683636460,0.2049657,97563.0,97562.0,0.32550268]
[1739683639368,0.2049657,97563.0,97562.0,0.38904617]
[1739683640063,0.2049657,97563.0,97562.0,0.37302506]
[1739683646162,0.2049657,97563.0,97562.0,0.68062384]
[1739683657575,0.2049657,97563.0,97562.0,0.37302506]
[1739683658971,0.2049657,97563.0,97562.0,0.57799276]
[1739683661978,0.2049657,97563.0,97562.0,0.2069677]
[1739683665076,0.2049657,97563.0,97562.0,0.002]
[1739683672185,0.2049657,97563.0,97562.0,0.2069677]
[1739683697712,0.2049657,97563.0,97562.0,0.20683229]
[1739683710143,0.2049657,97563.0,97562.0,0.51443473]
[1739683729241,0.2049657,97563.0,97562.0,0.87713708]
[1739683737654,0.2049657,97563.0,97562.0,0.67216938]
[1739683737849,0.2049657,97563.0,97562.0,0.36456694]
[1739683741352,0.2049657,97563.0,97562.0,0.56953464]
[1739683742357,0.2049657,97563.0,97562.0,0.20683229]
[1739683746972,0.2049657,97563.0,97562.0,0.00186459]
[1739683762578,0.2049657,97563.0,97562.0,0.03316459]
[1739683762976,0.2049657,97563.0,97562.0,0.34073875]
[1739683766891,0.2049657,97563.0,97562.0,0.70744681]
[1739683771091,0.2049657,97563.0,97562.0,0.36857265]
[1739683803110,0.2049657,97563.0,97562.0,0.6761696]
[1739683805921,0.2049657,97563.0,97562.0,0.8811373]
[1739683807811,0.2049657,97563.0,97562.0,0.20683229]
[1739683811214,0.2049657,97563.0,97562.0,0.51442924]
[1739683828931,0.2049657,97563.0,97562.0,0.57810304]
[1739683838027,0.3608,97567.0,97566.0,0.2049593]
[1739683838636,0.03315376,97571.0,97570.0,0.2049509]
[1739683840143,0.03315376,97571.0,97570.0,0.2059509]
[1739683840341,0.03315376,97571.0,97570.0,0.22197121]
[1739683840640,0.03315376,97571.0,97570.0,0.22297121]
[1739683841030,0.03315376,97571.0,97570.0,0.2069509]
[1739683847150,0.23810256,97571.0,97570.0,0.2069509]
[1739683848349,0.23810256,97571.0,97570.0,0.002]
[1739683874283,0.23810256,97571.0,97570.0,0.24798243]
[1739683878285,0.23810256,97571.0,97570.0,0.002]
[1739683892898,0.23810256,97571.0,97570.0,0.063]
[1739683895905,0.59890256,97571.0,97570.0,0.063]
[1739683898007,0.39395376,97571.0,97564.0,0.30741725]
[1739683898207,0.031,97570.0,97564.0,0.30741725]
[1739683898400,0.3608,97569.0,97564.0,0.30741725]
[1739683898803,0.2049614,97565.0,97564.0,0.30741725]
[1739683899108,0.2049614,97565.0,97564.0,0.30841725]
[1739683900006,0.2049614,97565.0,97564.0,0.30941725]
[1739683900398,0.2049614,97565.0,97564.0,0.30841725]
[1739683900810,0.2049614,97565.0,97564.0,0.30741725]
[1739683900999,0.2049614,97565.0,97564.0,0.30841725]
[1739683901300,0.2049614,97565.0,97564.0,0.001]
[1739683913113,0.2049824,97555.0,97554.0,0.0659]
[1739683913312,0.5657824,97555.0,97554.0,0.0659]
[1739683915104,0.5667824,97555.0,97554.0,0.0659]
[1739683930411,0.5667824,97555.0,97554.0,0.25037037]
[1739683936623,0.5667824,97555.0,97554.0,0.21757037]
[1739683936824,0.5667824,97555.0,97554.0,0.25087037]
[1739683937029,0.5667824,97555.0,97554.0,0.21757037]
[1739683940533,0.5667824,97555.0,97554.0,0.24797037]
[1739683941833,0.5667824,97555.0,97554.0,0.0635]
[1739683966466,0.5667824,97555.0,97554.0,0.0331]
[1739683971865,0.0512461,97554.0,97546.0,0.24602764]
[1739683972064,0.5657992,97547.0,97546.0,0.24602764]
[1739683973171,0.5667992,97547.0,97546.0,0.24602764]
[1739683973870,0.5677992,97547.0,97546.0,0.24602764]
[1739683974070,0.5677992,97547.0,97541.0,0.0635]
[1739683974071,0.2050097,97542.0,97541.0,0.0635]
[1739683975572,0.21515097,97542.0,97541.0,0.0635]
[1739683976468,0.21515097,97542.0,97541.0,0.0645]
[1739683976671,0.21615097,97542.0,97541.0,0.0645]
[1739683989371,0.57695097,97542.0,97541.0,0.0645]
[1739684013587,0.57695097,97542.0,97541.0,0.001]
[1739684015592,0.21615097,97542.0,97541.0,0.001]
[1739684015781,0.57695097,97542.0,97541.0,0.001]
[1739684024893,0.2050224,97536.0,97535.0,0.032]
[1739684026494,0.2060224,97536.0,97535.0,0.032]
[1739684026995,0.2080224,97536.0,97535.0,0.032]
[1739684027699,0.2070224,97536.0,97535.0,0.032]
[1739684028296,0.2060224,97536.0,97535.0,0.032]
[1739684029199,0.2060224,97536.0,97535.0,0.033]
[1739684029907,0.2070224,97536.0,97535.0,0.033]
[1739684030709,0.2060224,97536.0,97535.0,0.033]
[1739684031206,0.2070224,97536.0,97535.0,0.032]
[1739684031409,0.2080224,97536.0,97535.0,0.032]
[1739684031706,0.2070224,97536.0,97535.0,0.032]
[1739684031905,0.2080224,97536.0,97535.0,0.032]
[1739684033001,0.2060224,97536.0,97535.0,0.032]
[1739684033303,0.2080224,97536.0,97535.0,0.032]
[1739684035603,0.2070224,97536.0,97535.0,0.032]
[1739684035804,0.2080224,97536.0,97535.0,0.032]
[1739684036801,0.2060224,97536.0,97535.0,0.032]
[1739684037000,0.2080224,97536.0,97535.0,0.032]
[1739684042412,0.2060224,97536.0,97535.0,0.032]
[1739684042612,0.2080224,97536.0,97535.0,0.032]
[1739684049515,0.2060224,97536.0,97535.0,0.032]
[1739684049702,0.2080224,97536.0,97535.0,0.032]
[1739684050806,0.2070224,97536.0,97535.0,0.032]